[Event "Titled Tuesday Blitz May 03 Early 2022"]
[White "Safarli, Eltaj"]
[Black "Bartel, Michal"]
[WhiteFideId "13402129"]
[BlackFideId "1119257"]
[WhiteElo "2634"]
[BlackElo "2211"]
[Result "1-0"]
[Round "02"]
[TimeControl "180+1"]
[Date "2022.05.03"]
[WhiteClock "0:00:41"]
[BlackClock "0:00:11"]

1. e4 {[%clk 0:03:00]}  e5 {[%clk 0:02:59]} 2. Nf3 {[%clk 0:03:00]}  Nc6 {[%clk 0:03:00]} 3. Bb5 {[%clk 0:03:00]}  g6 {[%clk 0:03:00]} 4. c3 {[%clk 0:02:59]}  d6 {[%clk 0:03:00]} 5. d4 {[%clk 0:02:59]}  Bd7 {[%clk 0:03:00]} 6. O-O {[%clk 0:02:59]}  Bg7 {[%clk 0:03:01]} 7. Re1 {[%clk 0:02:59]}  Nge7 {[%clk 0:03:00]} 8. Bg5 {[%clk 0:02:56]}  h6 {[%clk 0:03:00]} 9. Bh4 {[%clk 0:02:56]}  g5 {[%clk 0:02:57]} 10. Bg3 {[%clk 0:02:55]}  Ng6 {[%clk 0:02:56]} 11. Na3 {[%clk 0:02:53]}  O-O {[%clk 0:02:56]} 12. Nc4 {[%clk 0:02:50]}  Nxd4 {[%clk 0:02:49]} 13. Nxd4 {[%clk 0:02:47]}  exd4 {[%clk 0:02:48]} 14. Bxd7 {[%clk 0:02:47]}  Qxd7 {[%clk 0:02:43]} 15. cxd4 {[%clk 0:02:48]}  f5 {[%clk 0:02:34]} 16. exf5 {[%clk 0:02:47]}  Qxf5 {[%clk 0:02:35]} 17. Rc1 {[%clk 0:02:38]}  Kh8 {[%clk 0:02:17]} 18. Ne3 {[%clk 0:02:30]}  Qf7 {[%clk 0:02:17]} 19. a4 {[%clk 0:02:23]}  Rae8 {[%clk 0:02:14]} 20. Qd3 {[%clk 0:02:20]}  Nf4 {[%clk 0:02:12]} 21. Bxf4 {[%clk 0:02:19]}  Qxf4 {[%clk 0:02:10]} 22. Rc2 {[%clk 0:01:59]}  Qxd4 {[%clk 0:02:05]} 23. Qg6 {[%clk 0:01:56]}  c5 {[%clk 0:01:58]} 24. Rce2 {[%clk 0:01:54]}  Qf6 {[%clk 0:01:54]} 25. Qh5 {[%clk 0:01:52]}  Qf7 {[%clk 0:01:51]} 26. Qg4 {[%clk 0:01:52]}  Bd4 {[%clk 0:01:48]} 27. h4 {[%clk 0:01:45]}  Bxe3 {[%clk 0:01:43]} 28. fxe3 {[%clk 0:01:46]}  Qe6 {[%clk 0:01:27]} 29. Qh5 {[%clk 0:01:45]}  gxh4 {[%clk 0:01:25]} 30. Qxh4 {[%clk 0:01:44]}  Rg8 {[%clk 0:01:24]} 31. Rf2 {[%clk 0:01:43]}  Rg4 {[%clk 0:01:24]} 32. Qh2 {[%clk 0:01:30]}  Reg8 {[%clk 0:01:08]} 33. e4 {[%clk 0:01:30]}  Kh7 {[%clk 0:01:06]} 34. Re3 {[%clk 0:01:21]}  Rxe4 {[%clk 0:00:57]} 35. Rxe4 {[%clk 0:01:22]}  Qxe4 {[%clk 0:00:58]} 36. Qxd6 {[%clk 0:01:22]}  Qe1+ {[%clk 0:00:54]} 37. Rf1 {[%clk 0:01:22]}  Qe3+ {[%clk 0:00:54]} 38. Kh1 {[%clk 0:01:22]}  Rg7 {[%clk 0:00:48]} 39. Qd5 {[%clk 0:01:17]}  Qg5 {[%clk 0:00:45]} 40. Qe4+ {[%clk 0:01:16]}  Qg6 {[%clk 0:00:44]} 41. Rf5 {[%clk 0:01:14]}  b6 {[%clk 0:00:43]} 42. b3 {[%clk 0:01:13]}  Rd7 {[%clk 0:00:40]} 43. Kh2 {[%clk 0:01:09]}  Rg7 {[%clk 0:00:39]} 44. Kh1 {[%clk 0:01:08]}  Rd7 {[%clk 0:00:36]} 45. Qf3 {[%clk 0:01:08]}  Rg7 {[%clk 0:00:33]} 46. Rf6 {[%clk 0:01:07]}  Qb1+ {[%clk 0:00:30]} 47. Kh2 {[%clk 0:01:07]}  Qc2 {[%clk 0:00:29]} 48. Qh3 {[%clk 0:01:02]}  Rg6 {[%clk 0:00:24]} 49. Qd7+ {[%clk 0:00:49]}  Rg7 {[%clk 0:00:24]} 50. Qd5 {[%clk 0:00:50]}  Rg6 {[%clk 0:00:17]} 51. Rf8 {[%clk 0:00:46]}  Rg7 {[%clk 0:00:14]} 52. Qa8 {[%clk 0:00:45]}  Qe2 {[%clk 0:00:10]} 53. Rh8+ {[%clk 0:00:45]}  Kg6 {[%clk 0:00:10]} 54. Qc6+ {[%clk 0:00:45]}  Kg5 {[%clk 0:00:11]} 55. Qxh6+ {[%clk 0:00:44]}  Kf5 {[%clk 0:00:11]} 56. Rf8+ {[%clk 0:00:42]}  Kg4 {[%clk 0:00:10]} 57. Qxg7+ {[%clk 0:00:42]}  Kh5 {[%clk 0:00:11]} 58. Rh8# {[%clk 0:00:41]} 1-0


[Site "https://www.chess.com"]

[Event "Titled Tuesday Blitz May 03 Early 2022"]
[White "Salimova, Nurgyul"]
[Black "Melaugh, Shane"]
[WhiteFideId "2915138"]
[BlackFideId "2509580"]
[WhiteElo "2185"]
[BlackElo "1972"]
[Result "1/2-1/2"]
[Round "02"]
[TimeControl "180+1"]
[Date "2022.05.03"]
[WhiteClock "0:00:13"]
[BlackClock "0:00:17"]

1. d4 {[%clk 0:03:00]}  e6 {[%clk 0:03:00]} 2. Nf3 {[%clk 0:02:59]}  f5 {[%clk 0:03:00]} 3. g3 {[%clk 0:02:55]}  Nf6 {[%clk 0:03:00]} 4. Bg2 {[%clk 0:02:56]}  Be7 {[%clk 0:03:01]} 5. O-O {[%clk 0:02:56]}  O-O {[%clk 0:03:02]} 6. c4 {[%clk 0:02:56]}  d6 {[%clk 0:03:03]} 7. Nc3 {[%clk 0:02:53]}  Ne4 {[%clk 0:03:03]} 8. Qc2 {[%clk 0:02:51]}  Nxc3 {[%clk 0:03:02]} 9. bxc3 {[%clk 0:02:49]}  Nc6 {[%clk 0:03:01]} 10. e4 {[%clk 0:02:44]}  e5 {[%clk 0:03:00]} 11. dxe5 {[%clk 0:02:20]}  dxe5 {[%clk 0:02:59]} 12. Rd1 {[%clk 0:02:20]}  Qe8 {[%clk 0:02:59]} 13. h3 {[%clk 0:01:36]}  Qh5 {[%clk 0:02:44]} 14. exf5 {[%clk 0:01:13]}  Bxf5 {[%clk 0:02:43]} 15. Qe2 {[%clk 0:01:13]}  Bxh3 {[%clk 0:02:10]} 16. Bxh3 {[%clk 0:01:12]}  Qxh3 {[%clk 0:02:11]} 17. Nxe5 {[%clk 0:00:47]}  Bc5 {[%clk 0:02:11]} 18. Bf4 {[%clk 0:00:26]}  Rae8 {[%clk 0:00:22]} 19. Rd5 {[%clk 0:00:21]}  Bd6 {[%clk 0:00:22]} 20. Re1 {[%clk 0:00:11]}  Ne7 {[%clk 0:00:23]} 21. Rd3 {[%clk 0:00:05]}  Ng6 {[%clk 0:00:23]} 22. Rf3 {[%clk 0:00:02]}  Bxe5 {[%clk 0:00:17]} 23. Bxe5 {[%clk 0:00:02]}  Rxf3 {[%clk 0:00:17]} 24. Qxf3 {[%clk 0:00:03]}  Nxe5 {[%clk 0:00:17]} 25. Qd5+ {[%clk 0:00:03]}  Qe6 {[%clk 0:00:17]} 26. Rxe5 {[%clk 0:00:03]}  Qxd5 {[%clk 0:00:06]} 27. Rxd5 {[%clk 0:00:03]}  Re7 {[%clk 0:00:06]} 28. Rd8+ {[%clk 0:00:03]}  Kf7 {[%clk 0:00:06]} 29. Ra8 {[%clk 0:00:04]}  a6 {[%clk 0:00:06]} 30. Rb8 {[%clk 0:00:05]}  b6 {[%clk 0:00:06]} 31. Ra8 {[%clk 0:00:05]}  a5 {[%clk 0:00:07]} 32. c5 {[%clk 0:00:06]}  Re2 {[%clk 0:00:05]} 33. cxb6 {[%clk 0:00:06]}  cxb6 {[%clk 0:00:06]} 34. a4 {[%clk 0:00:06]}  Ra2 {[%clk 0:00:05]} 35. Ra6 {[%clk 0:00:06]}  Rxa4 {[%clk 0:00:05]} 36. Rxb6 {[%clk 0:00:07]}  Rc4 {[%clk 0:00:05]} 37. Ra6 {[%clk 0:00:07]}  a4 {[%clk 0:00:06]} 38. Kg2 {[%clk 0:00:07]}  Rxc3 {[%clk 0:00:07]} 39. Rxa4 {[%clk 0:00:07]}  Rc7 {[%clk 0:00:07]} 40. Rf4+ {[%clk 0:00:07]}  Kg8 {[%clk 0:00:07]} 41. Rg4 {[%clk 0:00:08]}  Rf7 {[%clk 0:00:08]} 42. Re4 {[%clk 0:00:08]}  h6 {[%clk 0:00:09]} 43. Re3 {[%clk 0:00:09]}  Kh7 {[%clk 0:00:10]} 44. g4 {[%clk 0:00:09]}  Rf6 {[%clk 0:00:11]} 45. Kg3 {[%clk 0:00:10]}  Kg6 {[%clk 0:00:11]} 46. Re4 {[%clk 0:00:10]}  Rd6 {[%clk 0:00:12]} 47. Rc4 {[%clk 0:00:09]}  Rf6 {[%clk 0:00:13]} 48. Re4 {[%clk 0:00:09]}  Rf7 {[%clk 0:00:13]} 49. f3 {[%clk 0:00:09]}  Rf6 {[%clk 0:00:13]} 50. Re5 {[%clk 0:00:10]}  Rf7 {[%clk 0:00:13]} 51. Re6+ {[%clk 0:00:10]}  Rf6 {[%clk 0:00:13]} 52. Re4 {[%clk 0:00:10]}  h5 {[%clk 0:00:13]} 53. gxh5+ {[%clk 0:00:10]}  Kxh5 {[%clk 0:00:14]} 54. Rh4+ {[%clk 0:00:10]}  Kg6 {[%clk 0:00:14]} 55. Rg4+ {[%clk 0:00:11]}  Kf7 {[%clk 0:00:14]} 56. Rf4 {[%clk 0:00:12]}  Rxf4 {[%clk 0:00:15]} 57. Kxf4 {[%clk 0:00:12]}  Kf6 {[%clk 0:00:16]} 58. Kg4 {[%clk 0:00:12]}  g5 {[%clk 0:00:16]} 59. f4 {[%clk 0:00:12]}  gxf4 {[%clk 0:00:17]} 60. Kxf4 {[%clk 0:00:13]} 1/2-1/2


[Site "https://www.chess.com"]

[Event "Titled Tuesday Blitz May 03 Early 2022"]
[White "Sanchez, Robert"]
[Black "Alekseenko, Kirill"]
[WhiteFideId "2034360"]
[BlackFideId "4135539"]
[WhiteElo "2428"]
[BlackElo "2682"]
[Result "1-0"]
[Round "02"]
[TimeControl "180+1"]
[Date "2022.05.03"]
[WhiteClock "0:00:08"]
[BlackClock "0:00:10"]

1. e4 {[%clk 0:03:00]}  c5 {[%clk 0:02:59]} 2. Nf3 {[%clk 0:03:01]}  Nc6 {[%clk 0:03:00]} 3. d4 {[%clk 0:03:01]}  cxd4 {[%clk 0:03:01]} 4. Nxd4 {[%clk 0:03:02]}  Nf6 {[%clk 0:03:01]} 5. Nc3 {[%clk 0:03:01]}  d6 {[%clk 0:03:02]} 6. f3 {[%clk 0:03:01]}  e5 {[%clk 0:03:01]} 7. Nb3 {[%clk 0:03:01]}  Be7 {[%clk 0:03:01]} 8. Be3 {[%clk 0:03:02]}  O-O {[%clk 0:02:59]} 9. Qd2 {[%clk 0:03:02]}  a5 {[%clk 0:03:00]} 10. Bb5 {[%clk 0:03:02]}  Be6 {[%clk 0:02:59]} 11. O-O-O {[%clk 0:03:02]}  Qc7 {[%clk 0:02:53]} 12. Kb1 {[%clk 0:02:54]}  Na7 {[%clk 0:02:45]} 13. Bxa7 {[%clk 0:02:53]}  Rxa7 {[%clk 0:02:45]} 14. a4 {[%clk 0:02:44]}  Raa8 {[%clk 0:02:27]} 15. g4 {[%clk 0:02:44]}  Nd7 {[%clk 0:02:28]} 16. Bxd7 {[%clk 0:02:31]}  Qxd7 {[%clk 0:02:22]} 17. Nb5 {[%clk 0:02:26]}  Ra6 {[%clk 0:02:13]} 18. Nc5 {[%clk 0:01:39]}  Qc6 {[%clk 0:02:06]} 19. Nxa6 {[%clk 0:01:33]}  bxa6 {[%clk 0:02:07]} 20. Nc3 {[%clk 0:01:33]}  Rb8 {[%clk 0:02:05]} 21. Nd5 {[%clk 0:01:29]}  Bd8 {[%clk 0:02:05]} 22. Qc3 {[%clk 0:01:04]}  Qxa4 {[%clk 0:02:05]} 23. h4 {[%clk 0:00:56]}  Qd7 {[%clk 0:02:00]} 24. g5 {[%clk 0:00:54]}  a4 {[%clk 0:01:54]} 25. Ka1 {[%clk 0:00:51]}  Qb5 {[%clk 0:01:52]} 26. Qa3 {[%clk 0:00:41]}  Ba5 {[%clk 0:01:46]} 27. Rd3 {[%clk 0:00:35]}  Kh8 {[%clk 0:01:37]} 28. Rb1 {[%clk 0:00:32]}  Qc6 {[%clk 0:01:30]} 29. Nc3 {[%clk 0:00:27]}  Qc4 {[%clk 0:01:12]} 30. Qxd6 {[%clk 0:00:20]}  Rg8 {[%clk 0:01:09]} 31. Qa3 {[%clk 0:00:20]}  f5 {[%clk 0:00:53]} 32. gxf6 {[%clk 0:00:19]}  gxf6 {[%clk 0:00:53]} 33. Nd5 {[%clk 0:00:19]}  Qxc2 {[%clk 0:00:50]} 34. Qe7 {[%clk 0:00:18]}  Qxd3 {[%clk 0:00:39]} 35. Qxf6+ {[%clk 0:00:15]}  Rg7 {[%clk 0:00:40]} 36. Qxe6 {[%clk 0:00:14]}  Qb5 {[%clk 0:00:29]} 37. Nf6 {[%clk 0:00:10]}  Bd8 {[%clk 0:00:23]} 38. Rd1 {[%clk 0:00:07]}  Bxf6 {[%clk 0:00:14]} 39. Qxf6 {[%clk 0:00:08]}  h5 {[%clk 0:00:09]} 40. Rd8+ {[%clk 0:00:08]}  Kh7 {[%clk 0:00:10]} 41. Qf5+ {[%clk 0:00:08]}  Kh6 {[%clk 0:00:10]} 42. Rd6+ {[%clk 0:00:08]} 1-0


[Site "https://www.chess.com"]

[Event "Titled Tuesday Blitz May 03 Early 2022"]
[White "Schmakel, Sam"]
[Black "Richter, Nils"]
[WhiteFideId "2039311"]
[BlackFideId "12990809"]
[WhiteElo "2356"]
[BlackElo "2243"]
[Result "1-0"]
[Round "02"]
[TimeControl "180+1"]
[Date "2022.05.03"]
[WhiteClock "0:00:21"]
[BlackClock "0:01:15"]

1. Nf3 {[%clk 0:03:00]}  b6 {[%clk 0:02:59]} 2. g3 {[%clk 0:03:00]}  Bb7 {[%clk 0:03:00]} 3. Bg2 {[%clk 0:03:01]}  Nf6 {[%clk 0:03:00]} 4. b3 {[%clk 0:03:00]}  e6 {[%clk 0:03:00]} 5. Bb2 {[%clk 0:03:01]}  Be7 {[%clk 0:03:00]} 6. c4 {[%clk 0:03:01]}  O-O {[%clk 0:03:00]} 7. O-O {[%clk 0:03:01]}  d5 {[%clk 0:02:59]} 8. cxd5 {[%clk 0:02:58]}  exd5 {[%clk 0:02:59]} 9. d4 {[%clk 0:02:57]}  Nbd7 {[%clk 0:02:57]} 10. Nc3 {[%clk 0:02:55]}  a6 {[%clk 0:02:55]} 11. Rc1 {[%clk 0:02:51]}  Bd6 {[%clk 0:02:55]} 12. a3 {[%clk 0:02:46]}  Re8 {[%clk 0:02:55]} 13. b4 {[%clk 0:02:45]}  b5 {[%clk 0:02:55]} 14. Nd2 {[%clk 0:02:14]}  Nb6 {[%clk 0:02:53]} 15. e3 {[%clk 0:02:10]}  Rb8 {[%clk 0:02:49]} 16. Qc2 {[%clk 0:02:04]}  Qe7 {[%clk 0:02:47]} 17. Ne2 {[%clk 0:02:01]}  h5 {[%clk 0:02:44]} 18. Nb3 {[%clk 0:01:50]}  h4 {[%clk 0:02:36]} 19. Nc5 {[%clk 0:01:49]}  Bc8 {[%clk 0:02:31]} 20. Nc3 {[%clk 0:01:32]}  h3 {[%clk 0:02:17]} 21. Bh1 {[%clk 0:01:31]}  g6 {[%clk 0:02:12]} 22. Rce1 {[%clk 0:01:28]}  Bf5 {[%clk 0:02:11]} 23. Qc1 {[%clk 0:01:18]}  Ra8 {[%clk 0:01:57]} 24. f3 {[%clk 0:01:15]}  Bd3 {[%clk 0:01:54]} 25. Nxd3 {[%clk 0:01:15]}  Nh5 {[%clk 0:01:49]} 26. f4 {[%clk 0:01:06]}  c6 {[%clk 0:01:48]} 27. Ne5 {[%clk 0:01:04]}  a5 {[%clk 0:01:46]} 28. Nxc6 {[%clk 0:01:00]}  Qd7 {[%clk 0:01:42]} 29. Ne5 {[%clk 0:00:55]}  Bxe5 {[%clk 0:01:39]} 30. fxe5 {[%clk 0:00:47]}  Qg4 {[%clk 0:01:40]} 31. Bf3 {[%clk 0:00:39]}  Qg5 {[%clk 0:01:39]} 32. Nxd5 {[%clk 0:00:35]}  Nxd5 {[%clk 0:01:29]} 33. Bxd5 {[%clk 0:00:36]}  Rad8 {[%clk 0:01:24]} 34. Bxf7+ {[%clk 0:00:33]}  Kg7 {[%clk 0:01:22]} 35. e4 {[%clk 0:00:32]}  Qg4 {[%clk 0:01:17]} 36. Qd1 {[%clk 0:00:24]}  Qg5 {[%clk 0:01:15]} 37. Bc1 {[%clk 0:00:21]} 1-0


[Site "https://www.chess.com"]

[Event "Titled Tuesday Blitz May 03 Early 2022"]
[White "Seo, Jung Min"]
[Black "Aaditya Dhingra"]
[WhiteFideId "1734687"]
[BlackFideId "25678191"]
[WhiteElo "2401"]
[BlackElo "1849"]
[Result "1-0"]
[Round "02"]
[TimeControl "180+1"]
[Date "2022.05.03"]
[WhiteClock "0:00:23"]
[BlackClock "0:00:01"]

1. d4 {[%clk 0:03:00]}  Nf6 {[%clk 0:02:57]} 2. g3 {[%clk 0:03:00]}  g6 {[%clk 0:02:54]} 3. Bg2 {[%clk 0:03:00]}  Bg7 {[%clk 0:02:55]} 4. e4 {[%clk 0:03:00]}  d6 {[%clk 0:02:54]} 5. Ne2 {[%clk 0:03:00]}  O-O {[%clk 0:02:52]} 6. O-O {[%clk 0:03:00]}  c5 {[%clk 0:02:48]} 7. d5 {[%clk 0:02:55]}  b5 {[%clk 0:02:47]} 8. Re1 {[%clk 0:02:43]}  Nbd7 {[%clk 0:02:44]} 9. a4 {[%clk 0:02:42]}  bxa4 {[%clk 0:02:37]} 10. Rxa4 {[%clk 0:02:39]}  Nb6 {[%clk 0:02:36]} 11. Ra1 {[%clk 0:02:39]}  Bb7 {[%clk 0:02:30]} 12. Nbc3 {[%clk 0:02:38]}  a6 {[%clk 0:02:19]} 13. Bf4 {[%clk 0:02:37]}  Rb8 {[%clk 0:02:15]} 14. Qd2 {[%clk 0:02:36]}  Nc4 {[%clk 0:02:09]} 15. Qc1 {[%clk 0:02:35]}  Nh5 {[%clk 0:02:06]} 16. Bg5 {[%clk 0:02:32]}  f6 {[%clk 0:02:02]} 17. Bh6 {[%clk 0:02:15]}  Bxh6 {[%clk 0:01:58]} 18. Qxh6 {[%clk 0:02:15]}  Nxb2 {[%clk 0:01:54]} 19. Bf3 {[%clk 0:02:08]}  Ng7 {[%clk 0:01:53]} 20. Nf4 {[%clk 0:02:08]}  Bc8 {[%clk 0:01:51]} 21. Be2 {[%clk 0:02:04]}  Rb4 {[%clk 0:01:38]} 22. Reb1 {[%clk 0:02:00]}  Qb6 {[%clk 0:01:26]} 23. h4 {[%clk 0:01:51]}  a5 {[%clk 0:01:19]} 24. Kg2 {[%clk 0:01:48]}  Qd8 {[%clk 0:00:41]} 25. Na2 {[%clk 0:01:38]}  Rb7 {[%clk 0:00:36]} 26. Nc3 {[%clk 0:01:37]}  Rb4 {[%clk 0:00:35]} 27. Ra2 {[%clk 0:01:27]}  Nc4 {[%clk 0:00:29]} 28. Rba1 {[%clk 0:01:12]}  Qb6 {[%clk 0:00:20]} 29. Nd3 {[%clk 0:01:08]}  Ne5 {[%clk 0:00:19]} 30. Nxb4 {[%clk 0:01:05]}  cxb4 {[%clk 0:00:19]} 31. Nd1 {[%clk 0:01:05]}  Qc5 {[%clk 0:00:15]} 32. Qe3 {[%clk 0:01:02]}  Qc7 {[%clk 0:00:14]} 33. Qd2 {[%clk 0:01:00]}  f5 {[%clk 0:00:12]} 34. Rxa5 {[%clk 0:00:53]}  fxe4 {[%clk 0:00:11]} 35. Ne3 {[%clk 0:00:53]}  Nf3 {[%clk 0:00:10]} 36. Qxb4 {[%clk 0:00:53]}  Nf5 {[%clk 0:00:08]} 37. Nxf5 {[%clk 0:00:41]}  Bxf5 {[%clk 0:00:07]} 38. Qc4 {[%clk 0:00:37]}  Qd7 {[%clk 0:00:05]} 39. Ra7 {[%clk 0:00:32]}  Bh3+ {[%clk 0:00:05]} 40. Kh1 {[%clk 0:00:33]}  Qg4 {[%clk 0:00:04]} 41. Qc7 {[%clk 0:00:28]}  Qf5 {[%clk 0:00:02]} 42. Qxe7 {[%clk 0:00:26]}  Bg2+ {[%clk 0:00:01]} 43. Kxg2 {[%clk 0:00:26]}  Nxh4+ {[%clk 0:00:01]} 44. gxh4 {[%clk 0:00:22]}  Qxf2+ {[%clk 0:00:01]} 45. Kh1 {[%clk 0:00:23]}  Qxh4+ {[%clk 0:00:01]} 46. Qxh4 {[%clk 0:00:23]} 1-0


[Site "https://www.chess.com"]

[Event "Titled Tuesday Blitz May 03 Early 2022"]
[White "Shimanov, Aleksandr"]
[Black "Barria Zuniga, Daniel"]
[WhiteFideId "4198603"]
[BlackFideId "3400816"]
[WhiteElo "2636"]
[BlackElo "2414"]
[Result "1-0"]
[Round "02"]
[TimeControl "180+1"]
[Date "2022.05.03"]
[WhiteClock "0:00:40"]
[BlackClock "0:00:02"]

1. e4 {[%clk 0:03:00]}  e6 {[%clk 0:02:56]} 2. Nf3 {[%clk 0:02:52]}  d5 {[%clk 0:02:51]} 3. e5 {[%clk 0:02:52]}  c5 {[%clk 0:02:50]} 4. b4 {[%clk 0:02:51]}  d4 {[%clk 0:02:48]} 5. bxc5 {[%clk 0:02:48]}  Bxc5 {[%clk 0:02:48]} 6. Bd3 {[%clk 0:02:48]}  Nc6 {[%clk 0:02:47]} 7. O-O {[%clk 0:02:48]}  Nge7 {[%clk 0:02:43]} 8. Re1 {[%clk 0:02:48]}  h6 {[%clk 0:02:34]} 9. Ba3 {[%clk 0:02:46]}  Qa5 {[%clk 0:02:22]} 10. Bxc5 {[%clk 0:02:32]}  Qxc5 {[%clk 0:02:22]} 11. a4 {[%clk 0:02:33]}  O-O {[%clk 0:02:09]} 12. Na3 {[%clk 0:02:31]}  b6 {[%clk 0:01:59]} 13. Qe2 {[%clk 0:02:15]}  Ng6 {[%clk 0:01:54]} 14. g3 {[%clk 0:02:12]}  Bb7 {[%clk 0:01:51]} 15. Nc4 {[%clk 0:02:11]}  Rad8 {[%clk 0:01:49]} 16. Be4 {[%clk 0:02:05]}  Na5 {[%clk 0:01:33]} 17. Nd6 {[%clk 0:01:56]}  Bd5 {[%clk 0:01:17]} 18. Nb5 {[%clk 0:01:37]}  Bb7 {[%clk 0:01:10]} 19. Nxa7 {[%clk 0:01:29]}  Bxe4 {[%clk 0:00:58]} 20. Qxe4 {[%clk 0:01:29]}  d3 {[%clk 0:00:57]} 21. cxd3 {[%clk 0:01:26]}  Nb3 {[%clk 0:00:47]} 22. Rab1 {[%clk 0:01:03]}  Qc2 {[%clk 0:00:35]} 23. Qc4 {[%clk 0:00:56]}  Qxc4 {[%clk 0:00:32]} 24. dxc4 {[%clk 0:00:57]}  Nxd2 {[%clk 0:00:32]} 25. Nxd2 {[%clk 0:00:58]}  Rxd2 {[%clk 0:00:31]} 26. Rxb6 {[%clk 0:00:59]}  Ra2 {[%clk 0:00:14]} 27. c5 {[%clk 0:00:53]}  Rxa4 {[%clk 0:00:13]} 28. Nb5 {[%clk 0:00:52]}  Rc4 {[%clk 0:00:12]} 29. c6 {[%clk 0:00:52]}  Rc8 {[%clk 0:00:10]} 30. c7 {[%clk 0:00:52]}  Ne7 {[%clk 0:00:06]} 31. Rb8 {[%clk 0:00:52]}  Rxc7 {[%clk 0:00:05]} 32. Rb6 {[%clk 0:00:41]}  Rc1 {[%clk 0:00:04]} 33. Rxc1 {[%clk 0:00:42]}  Rxc1+ {[%clk 0:00:05]} 34. Kg2 {[%clk 0:00:43]}  Nd5 {[%clk 0:00:05]} 35. Rb8+ {[%clk 0:00:43]}  Kh7 {[%clk 0:00:04]} 36. Nd6 {[%clk 0:00:44]}  Kg6 {[%clk 0:00:04]} 37. Rb7 {[%clk 0:00:43]}  f5 {[%clk 0:00:04]} 38. Ne8 {[%clk 0:00:41]}  f4 {[%clk 0:00:02]} 39. g4 {[%clk 0:00:40]} 1-0


[Site "https://www.chess.com"]

[Event "Titled Tuesday Blitz May 03 Early 2022"]
[White "Skliarov, Viktor"]
[Black "Kozak, Adam"]
[WhiteFideId "14106736"]
[BlackFideId "753246"]
[WhiteElo "2229"]
[BlackElo "2459"]
[Result "0-1"]
[Round "02"]
[TimeControl "180+1"]
[Date "2022.05.03"]
[WhiteClock "0:00:06"]
[BlackClock "0:00:39"]

1. e4 {[%clk 0:03:00]}  c5 {[%clk 0:02:45]} 2. Nf3 {[%clk 0:03:00]}  a6 {[%clk 0:02:45]} 3. c3 {[%clk 0:02:59]}  d5 {[%clk 0:02:45]} 4. exd5 {[%clk 0:02:56]}  Qxd5 {[%clk 0:02:46]} 5. Na3 {[%clk 0:02:53]}  b5 {[%clk 0:02:43]} 6. d4 {[%clk 0:02:48]}  e6 {[%clk 0:02:38]} 7. Nc2 {[%clk 0:02:42]}  Nf6 {[%clk 0:02:35]} 8. Ne3 {[%clk 0:02:36]}  Qe4 {[%clk 0:02:32]} 9. Bd3 {[%clk 0:02:26]}  Qb7 {[%clk 0:02:27]} 10. a4 {[%clk 0:02:26]}  c4 {[%clk 0:02:24]} 11. Bc2 {[%clk 0:02:25]}  Nbd7 {[%clk 0:02:20]} 12. O-O {[%clk 0:02:10]}  Nb6 {[%clk 0:02:19]} 13. Ne5 {[%clk 0:01:53]}  Be7 {[%clk 0:02:06]} 14. f4 {[%clk 0:01:50]}  g6 {[%clk 0:02:04]} 15. N3g4 {[%clk 0:01:22]}  Bd7 {[%clk 0:01:48]} 16. Nxf6+ {[%clk 0:01:12]}  Bxf6 {[%clk 0:01:49]} 17. Nxd7 {[%clk 0:01:12]}  Qxd7 {[%clk 0:01:47]} 18. Be4 {[%clk 0:01:03]}  Rb8 {[%clk 0:01:41]} 19. axb5 {[%clk 0:01:02]}  axb5 {[%clk 0:01:42]} 20. Qf3 {[%clk 0:00:56]}  O-O {[%clk 0:01:39]} 21. Bd2 {[%clk 0:00:51]}  b4 {[%clk 0:01:38]} 22. Ra6 {[%clk 0:00:40]}  Nc8 {[%clk 0:01:02]} 23. f5 {[%clk 0:00:25]}  Nd6 {[%clk 0:00:57]} 24. fxe6 {[%clk 0:00:15]}  fxe6 {[%clk 0:00:57]} 25. Bc6 {[%clk 0:00:16]}  Qc7 {[%clk 0:00:51]} 26. Qg3 {[%clk 0:00:15]}  Qf7 {[%clk 0:00:49]} 27. Rf3 {[%clk 0:00:09]}  Nf5 {[%clk 0:00:49]} 28. Qg4 {[%clk 0:00:09]}  bxc3 {[%clk 0:00:49]} 29. bxc3 {[%clk 0:00:09]}  Rb1+ {[%clk 0:00:48]} 30. Kf2 {[%clk 0:00:10]}  Rb2 {[%clk 0:00:48]} 31. Ke2 {[%clk 0:00:10]}  Qe7 {[%clk 0:00:40]} 32. Be4 {[%clk 0:00:10]}  Bg5 {[%clk 0:00:40]} 33. Rf4 {[%clk 0:00:05]}  Bxf4 {[%clk 0:00:39]} 34. Qxf4 {[%clk 0:00:06]}  Nxd4+ {[%clk 0:00:39]} 0-1


[Site "https://www.chess.com"]

[Event "Titled Tuesday Blitz May 03 Early 2022"]
[White "Stribuk, Artiom"]
[Black "Pinheiro, Iung Alicio de O."]
[WhiteFideId "13515659"]
[BlackFideId "2104350"]
[WhiteElo "2259"]
[BlackElo "2560"]
[Result "1-0"]
[Round "02"]
[TimeControl "180+1"]
[Date "2022.05.03"]
[WhiteClock "0:00:32"]
[BlackClock "0:00:25"]

1. d4 {[%clk 0:03:00]}  Nf6 {[%clk 0:02:55]} 2. c4 {[%clk 0:02:59]}  g6 {[%clk 0:02:55]} 3. g3 {[%clk 0:02:58]}  Bg7 {[%clk 0:02:55]} 4. Bg2 {[%clk 0:02:55]}  d5 {[%clk 0:02:54]} 5. cxd5 {[%clk 0:02:54]}  Nxd5 {[%clk 0:02:55]} 6. Nf3 {[%clk 0:02:54]}  O-O {[%clk 0:02:54]} 7. O-O {[%clk 0:02:54]}  Nb6 {[%clk 0:02:50]} 8. Nc3 {[%clk 0:02:53]}  Nc6 {[%clk 0:02:50]} 9. e3 {[%clk 0:02:50]}  Re8 {[%clk 0:02:50]} 10. h3 {[%clk 0:02:49]}  e5 {[%clk 0:02:49]} 11. d5 {[%clk 0:02:50]}  Na5 {[%clk 0:02:47]} 12. Qc2 {[%clk 0:02:48]}  c6 {[%clk 0:02:32]} 13. b4 {[%clk 0:02:48]}  Nac4 {[%clk 0:02:06]} 14. dxc6 {[%clk 0:02:47]}  bxc6 {[%clk 0:02:00]} 15. Rd1 {[%clk 0:02:46]}  Qe7 {[%clk 0:01:59]} 16. Nd2 {[%clk 0:02:16]}  e4 {[%clk 0:01:42]} 17. Rb1 {[%clk 0:01:40]}  Nxd2 {[%clk 0:01:23]} 18. Bxd2 {[%clk 0:01:40]}  f5 {[%clk 0:01:24]} 19. Ne2 {[%clk 0:01:34]}  Be6 {[%clk 0:01:21]} 20. Bc3 {[%clk 0:01:24]}  Bc4 {[%clk 0:01:03]} 21. Bxg7 {[%clk 0:01:01]}  Bd3 {[%clk 0:00:58]} 22. Rxd3 {[%clk 0:01:00]}  exd3 {[%clk 0:00:59]} 23. Qxd3 {[%clk 0:01:00]}  Kxg7 {[%clk 0:00:40]} 24. Bxc6 {[%clk 0:00:56]}  Rad8 {[%clk 0:00:40]} 25. Qc3+ {[%clk 0:00:55]}  Kh6 {[%clk 0:00:29]} 26. Bxe8 {[%clk 0:00:54]}  Qxe8 {[%clk 0:00:28]} 27. Qf6 {[%clk 0:00:47]}  Nd5 {[%clk 0:00:27]} 28. Qh4+ {[%clk 0:00:47]}  Kg7 {[%clk 0:00:27]} 29. Rd1 {[%clk 0:00:45]}  h6 {[%clk 0:00:26]} 30. Qd4+ {[%clk 0:00:40]}  Kf7 {[%clk 0:00:25]} 31. Nf4 {[%clk 0:00:32]} 1-0


[Site "https://www.chess.com"]